Cogmind - Beta 10.1 @@@ ROGUE MODE // 2020.10.14 @ 16:02:40 // AFD2020/Player2 Player: Minty Result: Destroyed by D-53 Grenadier with Mini Grenade Launcher Performance ------------- Evolutions (0) 0 Regions Visited (2) 400 Robots Destroyed (0) 0 Value Destroyed (0) 0 Prototype IDs (0) 0 Alien Tech Used (0) 0 Bonus (72) 72 TOTAL SCORE: 472 Bonus ------- Follower Combat Kills 120 Friendly Fire -48 Cogmind --------- Core Integrity 0/250 Matter 300/300 Energy 125/125 System Corruption 0% Temperature Cool (0) Movement Core (150) Ox2 Location -10/Mines Parts ------- > --- POWER (1) -------- Light Ion Engine > --- PROPULSION (2) --- (None) > --- UTILITY (2) ------ Small Storage Unit > --- WEAPON (2) ------- (None) > --- INVENTORY (6) ---- Ion Engine Peak State ------------ > --- POWER ------------ Light Ion Engine > --- PROPULSION ------- Wheel Hover Unit > --- UTILITY ---------- Improved Heat Sink Small Storage Unit > --- WEAPON ----------- Particle Gun > --- INVENTORY -------- Ion Engine [Rating: 9] Favorites ----------- Power Light Ion Engine Engine Light Ion Engine Propulsion Hover Unit Wheel Wheel Hover Unit Hover Unit Utility Small Storage Unit Device Improved Heat Sink Storage Small Storage Unit Weapon Particle Gun Energy Gun Particle Gun Build | -11 -10 -10 ------- Run | Scr Mat Min Slots Evolved . | . . . Power . | . . . Propulsion . | . . . Utility . | . . . Weapon . | . . . Parts Attached 13 | 6 7 . Power 2 | 1 1 . Engine 2 | 1 1 . Core . | . . . Reactor . | . . . Propulsion 4 | 2 2 . Treads . | . . . Leg . | . . . Wheel 2 | 2 . . Hover 2 | . 2 . Flight . | . . . Utility 3 | 1 2 . Device 1 | . 1 . Storage 2 | 1 1 . Processor . | . . . Hackware . | . . . Protection . | . . . Artifact . | . . . Weapon 4 | 2 2 . Energy Gun 4 | 2 2 . Energy Cannon . | . . . Ballistic Gun . | . . . Ballistic Cannon . | . . . Launcher . | . . . Special Weapon . | . . . Impact Weapon . | . . . Slashing Weapon . | . . . Piercing Weapon . | . . . Special Melee Weapon . | . . . Unidentified Prototypes . | . . . Parts Lost 4 | . . 4 Power . | . . . Propulsion 2 | . . 2 Utility 1 | . . 1 Weapon 1 | . . 1 Highest Loss Streak 4 | . . 4 Average Slot Usage (%) 71 | . 63 79 Engine 14 | . 14 14 Wheel 4 | . 8 . Hover 18 | . 11 25 Device 9 | . 5 12 Storage 14 | . 14 14 Energy Gun 11 | . 9 12 Naked Turns . | . . . Heaviest Build 13 | 13 11 11 Greatest Support 26 | 26 12 12 Greatest Overweight (x) 2 | . 1 2 Average Overweight (x) . | . . . Largest Inventory Capacity 6 | 6 6 6 Average Capacity 5 | 4 5 6 Most Carried 2 | 1 2 1 Average Carried 1 | . 1 1 Final Capacity 6 | 6 6 6 Final Carried 1 | 1 1 1 Class Distribution -------------------- 65% | Scavenger-Mutant 34% | Mutant Dominant Class ---------------- Scavenger-Mutant | -10/Materials Scavenger-Mutant | -10/Mines Resources | -11 -10 -10 ----------- Run | Scr Mat Min Matter Collected 330 | 260 70 . Remotely . | . . . Salvage Created . | . . . Parts . | . . . Haulers Intercepted . | . . . Recyclers Shooed . | . . . Parts Field Recycled . | . . . Retrieved Matter . | . . . Parts Self-Destructed . | . . . Prevented . | . . . Kills | -11 -10 -10 ------- Run | Scr Mat Min Combat Hostiles Destroyed . | . . . Classes Destroyed . | . . . Best Kill Streak . | . . . Combat Bots Only . | . . . Max Kills in Single Turn . | . . . Gunslinging . | . . . Exploded . | . . . Melee . | . . . Uniques/NPCs Destroyed . | . . . Combat | -11 -10 -10 -------- Run | Scr Mat Min Damage Taken 317 | . 18 299 Core 110 | . . 110 Absorbed by Shields . | . . . Core Remaining (%) 100 | 100 . . Volleys Fired 13 | . 2 11 Largest 1 | . 1 1 Hottest 65 | . 65 65 Shots Fired 13 | . 2 11 Gun 13 | . 2 11 Cannon . | . . . Launcher . | . . . Special . | . . . Kinetic . | . . . Thermal 13 | . 2 11 Explosive . | . . . Electromagnetic . | . . . Robot Hit Streak 2 | . 1 2 Robot Miss Streak 2 | . 1 2 Penetration Max . | . . . Secondary Targets . | . . . Shots Hit Robots 6 | . 1 5 Core Hits 3 | . 1 2 Critical Hits . | . . . Critical Kills . | . . . Critical Parts Destroyed . | . . . Melee Attacks . | . . . Impact . | . . . Slashing . | . . . Piercing . | . . . Sneak Attacks . | . . . Combat Hostiles . | . . . Follow-up Attacks . | . . . Damage Inflicted 122 | . 26 96 Guns 122 | . 26 96 Cannons . | . . . Explosions . | . . . Melee . | . . . Ramming . | . . . Kinetic . | . . . Thermal 122 | . 26 96 Explosive . | . . . Electromagnetic . | . . . Impact . | . . . Slashing . | . . . Piercing . | . . . Highest Corruption . | . . . Average Corruption . | . . . Corruption Purged . | . . . Overload Shots . | . . . Overflow Damage . | . . . Projectiles . | . . . Explosions . | . . . Melee . | . . . Knockbacks . | . . . Impact . | . . . Kinetic . | . . . Secondary . | . . . Self-Inflicted Damage . | . . . Shots . | . . . Rammed . | . . . Targets Rammed . | . . . Kicked . | . . . Crushed . | . . . Highest Temperature 25 | . 24 25 Average Temperature 6 | . 13 5 Received Heat Transfer 9 | . 9 . Siege Activations . | . . . Robots Corrupted . | . . . Combat Hostiles . | . . . Parts Fried . | . . . Impact Corruptions . | . . . Robots Melted . | . . . Combat Hostiles . | . . . Parts Melted . | . . . Heat Transferred 256 | . 62 194 Parts Sabotaged . | . . . Parts Stolen . | . . . Parts Stripped . | . . . Power Chain Reactions . | . . . Missiles Intercepted . | . . . Alert | -11 -10 -10 ------- Run | Scr Mat Min Peak Influence 122 | . 122 53 Initial 47 | . . 47 Average 44 | . 70 44 Maximum Alert Level . | . . . Low Security (%) 100 | 100 100 100 Level 1 . | . . . Level 2 . | . . . Level 3 . | . . . Level 4 . | . . . Level 5 . | . . . High Security . | . . . Max Security . | . . . Squads Dispatched . | . . . Investigation . | . . . Extermination . | . . . Reinforcement . | . . . Assault . | . . . Garrison . | . . . Intercept . | . . . Construction Impeded . | . . . Haulers Reinforced . | . . . Stealth | -11 -10 -10 --------- Run | Scr Mat Min Distress Signals 1 | . 1 . Communications Jammed . | . . . Distress Signals . | . . . Times Spotted 15 | . 6 9 Peak Tracking Total 6 | . 6 6 Tactical Retreats . | . . . Traps | -11 -10 -10 ------- Run | Scr Mat Min Traps Triggered . | . . . Indirectly . | . . . Trap Hack Attempts . | . . . Triggered . | . . . Disarmed . | . . . Reprogrammed . | . . . Reused . | . . . Traps Extracted . | . . . Installed . | . . . Triggered . | . . . Machines | -11 -10 -10 ---------- Run | Scr Mat Min Machines Disabled . | . . . Max in Single Turn . | . . . Machines Sabotaged . | . . . Garrisons Compromised . | . . . Overloaded Fab Kills . | . . . Fab Network Shutdowns . | . . . Hacking | -11 -10 -10 --------- Run | Scr Mat Min Machines Accessed . | . . . Terminals . | . . . Fabricators . | . . . Repair Stations . | . . . Recycling Units . | . . . Scanalyzers . | . . . Garrison Access . | . . . Total Hacks . | . . . Successful . | . . . Failed . | . . . Catastrophic . | . . . Database Lockouts . | . . . Manual . | . . . Terminals . | . . . Fabricators . | . . . Repair Stations . | . . . Recycling Units . | . . . Scanalyzers . | . . . Garrison Access . | . . . Terminal Hacks . | . . . Fabricator Hacks . | . . . Repair Station Hacks . | . . . Recycling Unit Hacks . | . . . Scanalyzer . | . . . Garrison Access Hacks . | . . . Unauthorized Hacks . | . . . Terminals . | . . . Fabricators . | . . . Repair Stations . | . . . Recycling Units . | . . . Scanalyzers . | . . . Garrison Access . | . . . Data Cores Recovered . | . . . Used . | . . . Hacking Detections . | . . . Full Trace Events . | . . . Feedback Events . | . . . Feedback Blocked . | . . . Robot Schematics Acquired . | . . . Robots Built . | . . . Matter . | . . . Time . | . . . Total Robot Build Rating . | . . . Part Schematics Acquired . | . . . Parts Built . | . . . Matter . | . . . Time . | . . . Total Part Build Rating . | . . . Parts Repaired . | . . . Time . | . . . Parts Recycled . | . . . Recycled Matter . | . . . Retrieved Matter . | . . . Retrieved Components . | . . . Parts Scanalyzed . | . . . Part Schematics Acquired . | . . . Parts Damaged . | . . . Bothacking | -11 -10 -10 ------------ Run | Scr Mat Min Used RIF Installer . | . . . Robots Hacked . | . . . Non-combat . | . . . Combat . | . . . Robot Hacks Applied . | . . . Relay Couplers Released . | . . . Robots Rewired . | . . . Allies Hacked . | . . . Hacks Repelled . | . . . Allies | -11 -10 -10 -------- Run | Scr Mat Min Total Allies 1 | . 1 . Largest Group 1 | . 1 1 Highest-Rated Group 59 | . 59 59 Highest-Rated Ally 59 | . 59 59 Total Orders . | . . . Ally Attacks 15 | . 12 3 Total Damage 214 | . 165 49 Kills 6 | . 5 1 Allies Corrupted . | . . . Allies Melted . | . . . Intel | -11 -10 -10 ------- Run | Scr Mat Min Robot Analysis Total . | . . . Derelict Logs Recovered . | . . . Drone Launches . | . . . Drone Recoveries . | . . . Exploration | -11 -10 -10 ------------- Run | Scr Mat Min Turns Passed 249 | 55 96 98 Spaces Moved 262 | 56 74 132 Core 14 | 12 . 2 Treads . | . . . Legs . | . . . Wheels 83 | 44 39 . Hover 165 | . 35 130 Flight . | . . . Fastest Speed 50 | 50 56 56 Average Speed 65 | 80 69 57 Slowest Speed 150 | 90 90 150 Overloaded Moves . | . . . Propulsion Burnouts . | . . . Robots Hopped . | . . . Cave-ins Triggered . | . . . Exploration Rate (%) 18 | 3 17 34 Regions Visited 2 Branch Regions 1 Pre-discovered Areas . | . . . Known Exits Taken . | . . . Unknown Exits Taken 2 | 1 1 . Scrap Searched . | . . . Spaces Dug . | . . . Terrain Destroyed . | . . . Melee . | . . . Projectile . | . . . AOE . | . . . Terrain Rammed . | . . . Walls Destroyed . | . . . Machines Disabled . | . . . Actions | -11 -10 -10 --------- Run | Scr Mat Min Total 321 | 62 116 143 Wait 26 | . 26 . Move 260 | 55 73 132 Hop . | . . . Pick Up 3 | 1 2 . Fast Attach 10 | 6 4 . Attach 2 | . 2 . Detach . | . . . Swap 1 | . 1 . Drop 6 | . 6 . Fire 13 | . 2 11 Melee . | . . . Ram . | . . . Kick . | . . . Crush . | . . . Escape Stasis . | . . . Rewire . | . . . Trap . | . . . Miscellaneous . | . . . Route ------- -11/Scrapyard -10/Materials -10/Mines (discovered 1 exit: [*Mat]) History --------- Turn | Location | Event 4 | -11/Scrapyard | Discovered new exit (range 15) 56 | -11/Scrapyard | Entered Materials 130 | -10/Materials | Discovered new exit (range 11) 152 | -10/Materials | Entered Mines 152 | -10/Mines | Accompanied by 1 ally 152 | -10/Mines | Discovered new exit (range 9) 197 | -10/Mines | Assembled infested the area 202 | -10/Mines | Assisted by a Guerilla fighting off Assembled 244 | -10/Mines | Core integrity fell below 50% 249 | -10/Mines | Core integrity fell below 20% 250 | -10/Mines | Destroyed by D-53 Grenadier with Mini Grenade Launcher Last Messages --------------- 00238_ The unstable cave ceiling collapses. 00239_ as-83066 destroyed. 00239_ as-99138 destroyed. 00239_ as-89500 destroyed. 00241_ as-01306 destroyed. 00241_ U-05 Engineer destroyed. 00241_ R-06 Scavenger collects Terrain Scanner. 00243_ The unstable cave ceiling collapses. 00243_ Hover Unit destroyed. 00243_ R-06 Scavenger destroyed. 00244_ Player 2 attaches Aluminum Leg. 00245_ The unstable cave ceiling collapses. 00245_ Player 2 attaches Aluminum Leg. 00245_ Imp. Heat Sink destroyed. 00246_ The unstable cave ceiling collapses. 00246_ Particle Gun destroyed. 00246_ Hover Unit destroyed. 00247_ The unstable cave ceiling collapses. 00248_ D-53 Grenadier destroyed. 00249_ The unstable cave ceiling collapses. Map ----- +----------------------------------------------------+ | ???????????????????????????????????????? ###? | | ?????????#####??????????????????????????? ## | | ????????## ##?????###?????????????????? | | ???????## #????## #??######????????? | | ???????# #????# ### ##???????? | | ???????# #????# ######???# | | ????????# ##????# ##### # | | ????????# ##?????# #??? | | ????????# #?????## < ##??? | | ???????## #?????## #######???? | | ??????## #??#### ## #?????????? | | ??????# #### #### #?????????? | | ??????# ## ##??# #?????????? | | ??????# =% #???## ##?????????? | | ??????# ##????#####??????????? | | ??????## #????????????????????? | | ???????## ## ##????????????###?????? | | ????????# #### ####????????????# ##????? | | ????????# #??########???????####???# ##???? | | ???????## ##???????#####???## #### #???? | | ??????## ###?##### ##### ## #???? | | ??????# ### #???? | | ?????## # ##???? | | ?????# ## ##????????? | | ?????# @ # # ##????????? | | ?????## @ #????????? | | ??????### ##????????? | | ????????### d # #####?????????? | | ??????????## ## # ###?????????????? | | ???????????## # # #??????????????? | | ????????????# # #??????????????? | | ????????????## ## #??????????????? | | ?????????????#### ####??????????????? | | ????????????????## #?????????????????? | | ????????????????? #####?????????????????? | | ????????????????# ?????????????????????? | | ????????????????# #?????????????????????? | | ????????????????## # #?????????????????????? | | ????????????????? ?????????????????????? | | ?????????????????? ?????????????????????? | | ???????????????????? ??????????????????????? | | ???????????????????????????????????????????????? | | ???????????????????????????????????????????????? | | ???????????????????????????????????????????????? | | ???????????????????????????????????????????????? | | ???????????????????????????????????????????????? | | ???????????????????????????????????????????????? | | ???????????????????????????????????????????????? | | ???????????????????????????????????????????????? | | ???????????????????????????????????????????????? | +----------------------------------------------------+ Best States ------------- Heat Dissipation 39 Energy Generation 10 Energy Capacity 250 Matter Stores 300 Matter Capacity 300 Sight Range 16 Terrain Scan Density 10 Evasion (%) 53 Item Schematics ----------------- None Robot Schematics ------------------ None Fabricated ------------ Nothing Alien Tech Used ----------------- None Achievements -------------- None Challenges ------------ None Player 2 | -11 -10 -10 ---------- Run | Scr Mat Min Slots Evolved . | . . . Power . | . . . Propulsion . | . . . Utility . | . . . Weapon . | . . . Parts Attached 10 | . 7 3 Parts Lost 8 | . 1 7 Damage Taken 654 | . 114 540 Core 151 | . 18 133 Player 2/Cogmind (%) 57 | . 100 54 Absorbed by Shields . | . . . Damage Inflicted 214 | . 165 49 Player 2/Cogmind (%) 63 | . 86 33 Combat Hostiles Destroyed 4 | . 4 . Player 2/Cogmind (%) 100 | . 100 . Game ------ Seed MiniMomentumProcessor Manual? 0 Play Time 00:03:42 Cumulative 318.3 hours Start 2020.10.14 @ 15:59:56 End 2020.10.14 @ 16:02:40 Sessions 1 Manual Loads 0 Difficulty Rogue Special Mode AFD2020/Player2 Game No. 177 Rogue 20 Adventurer 52 Explorer 105 Win Type - Total 19 Types 17/0/1/0/0/0/0/1/0 Lore% 62 Gallery% 85 Achievement% 64 Wizard Run 0 Options --------- ASCII 0 Keyboard 0 Movement Mouse Keybinds 0 Fullscreen 2 Font 18/TerminusBold Map View 76x50 Tactical HUD 1 Map Filters NONE Filters NONE Steam 1 RUN: b720c5a5-0333-4966-ae4f-d4c292a61dd8